bitfinex/quotes_ETHUSD_20241207
["timestamp","ask_amount","ask_price","bid_price","bid_amount"]
[1733610408978,6.06275942,4002.3,4002.2,0.174906]
[1733610409180,6.06275942,4002.3,4002.1,1.45381643]
[1733610409386,6.06275942,4002.2,4002.1,1.45381643]
[1733610409817,6.06275942,4002.2,4001.9,1.74916]
[1733610410103,6.06275942,4002.1,4002.0,1.74912]
[1733610410882,6.0609755,4002.1,4002.0,1.74912]
[1733610411287,6.0609755,4002.1,4002.0,2.50572]
[1733610411677,9.72669088,4002.1,4002.0,2.50572]
[1733610411866,6.0609755,4002.1,4002.0,2.50572]
[1733610412072,6.0609755,4002.1,4002.0,0.7566]
[1733610412281,8.65792883,4002.1,4002.0,0.7566]
[1733610412502,6.0609755,4002.1,4002.0,0.7566]
[1733610415793,6.05800519,4002.1,4002.0,0.7566]
[1733610418819,9.71694187,4002.1,4002.0,0.7566]
[1733610419817,3.89591237,4002.1,4002.0,0.7566]
[1733610420310,9.71522821,4002.1,4002.0,0.7566]
[1733610420513,8.41874409,4002.1,4002.0,0.7566]
[1733610420722,1.07751859,4002.5,4002.0,0.7566]
[1733610421021,0.18666043,4002.4,4002.0,0.7566]
[1733610421194,0.18666043,4002.3,4002.0,0.7566]
[1733610421395,1.07751859,4002.5,4002.0,0.7566]
[1733610421594,0.18664136,4002.4,4002.0,0.7566]
[1733610421916,0.18664136,4002.3,4002.0,0.7566]
[1733610422218,1.07751859,4002.5,4002.0,0.7566]
[1733610422515,0.32424908,4002.4,4002.0,0.7566]
[1733610422723,0.18663155,4002.3,4002.0,0.7566]
[1733610422882,0.13761753,4002.4,4002.0,0.7566]
[1733610423085,0.18664461,4002.3,4002.0,0.7566]
[1733610423282,1.07751859,4002.5,4002.0,0.7566]
[1733610423601,0.32427502,4002.4,4002.0,0.7566]
[1733610423808,0.18665749,4002.3,4002.0,0.7566]
[1733610423985,0.53200498,4002.6,4002.0,0.7566]
[1733610424317,0.42002737,4002.5,4002.0,0.7566]
[1733610424512,0.18667907,4002.4,4002.0,0.7566]
[1733610424684,0.18667907,4002.3,4002.0,0.7566]
[1733610424883,1.07751859,4002.5,4002.0,0.7566]
[1733610425085,0.18668586,4002.4,4002.0,0.7566]
[1733610425285,0.18668586,4002.3,4002.0,0.7566]
[1733610425483,1.07751859,4002.5,4002.0,0.7566]
[1733610425712,0.18668566,4002.4,4002.0,0.7566]
[1733610425921,0.18668566,4002.3,4002.0,0.7566]
[1733610426214,2.38139585,4002.5,4002.0,0.7566]
[1733610426415,0.18667758,4002.4,4002.0,0.7566]
[1733610426620,0.18667758,4002.3,4002.0,0.7566]
[1733610426815,0.18667758,4002.2,4002.0,0.7566]
[1733610427016,0.25680734,4002.3,4002.0,0.7566]
[1733610427323,0.18667496,4002.2,4002.0,0.7566]
[1733610427519,0.25680734,4002.3,4001.7,2.50545]
[1733610427720,0.18667764,4002.2,4001.7,0.7562]
[1733610428023,1.01946762,4002.3,4001.7,0.7562]
[1733610428240,0.18667645,4002.2,4001.7,0.7562]
[1733610428399,0.76266028,4002.3,4001.7,0.7562]
[1733610428600,0.18667869,4002.2,4001.7,0.7562]
[1733610428800,0.76266028,4002.3,4001.7,0.7562]
[1733610428998,0.18667732,4002.2,4001.7,0.7562]
[1733610429188,0.76266028,4002.3,4001.7,0.7562]
[1733610429389,0.18668672,4002.2,4001.7,0.7562]
[1733610429586,0.76266028,4002.3,4001.7,2.50545]
[1733610429829,0.18668622,4002.2,4001.7,2.50545]
[1733610429995,0.76266028,4002.3,4001.7,2.50545]
[1733610430190,0.18668372,4002.2,4001.7,2.50545]
[1733610430390,0.76266028,4002.3,4001.7,2.50545]
[1733610430603,0.18669917,4002.2,4001.7,2.50545]
[1733610430802,0.23337474,4002.4,4001.7,2.50545]
[1733610431010,0.18670693,4002.3,4001.7,2.50545]
[1733610431215,0.18670693,4002.2,4001.8,0.7924]
[1733610431416,0.76261959,4002.5,4002.0,0.7924]
[1733610431698,0.18673089,4002.4,4002.0,0.7924]
[1733610431894,0.18673959,4002.3,4002.0,0.7924]
[1733610432214,0.76261959,4002.5,4002.0,0.7924]
[1733610432519,0.18676423,4002.4,4002.0,0.7924]
[1733610432832,0.18676423,4002.3,4002.0,0.7924]
[1733610432990,0.76261959,4002.5,4002.0,0.7924]
[1733610433190,0.1867622,4002.4,4002.0,0.7924]
[1733610433421,0.1867622,4002.3,4002.0,2.54152]
[1733610433607,0.76261959,4002.5,4002.0,2.54152]
[1733610433807,0.18680251,4002.4,4002.0,2.54152]
[1733610434007,0.18680251,4002.3,4002.0,2.54152]
[1733610434308,0.76261959,4002.5,4002.0,0.7924]
[1733610434511,0.1868322,4002.4,4002.0,0.7924]
[1733610434724,0.76261959,4002.5,4002.0,0.7924]
[1733610434725,0.1868322,4002.3,4002.0,0.7924]
[1733610435020,0.76261959,4002.5,4002.0,0.7924]
[1733610435323,0.18684004,4002.4,4002.0,2.54151]
[1733610435526,0.18684004,4002.3,4002.0,2.54151]
[1733610435827,0.76261959,4002.5,4002.0,2.54151]
[1733610435828,0.18684004,4002.2,4002.0,2.54151]
[1733610436129,0.23359215,4002.4,4002.0,2.54151]
[1733610436290,0.18689948,4002.3,4002.0,2.54151]
[1733610436487,0.18689948,4002.2,4002.0,2.54151]
[1733610436685,0.23362697,4002.4,4002.0,0.7924]
[1733610436922,0.1869033,4002.3,4002.0,0.7924]
[1733610437129,0.1869033,4002.2,4002.0,0.7924]
[1733610437305,0.76261959,4002.5,4002.0,0.7924]
[1733610437505,0.4205733,4002.4,4002.0,0.7924]
[1733610437703,0.18692142,4002.3,4002.0,0.7924]
[1733610437904,0.18692142,4002.2,4002.0,0.7924]
[1733610438109,0.76261959,4002.5,4002.0,0.7924]
[1733610438438,0.71978396,4002.4,4002.0,0.7924]
[1733610438637,0.18695689,4002.3,4002.0,0.7924]
[1733610439005,0.18695689,4002.2,4002.0,0.7924]
[1733610439192,0.76261959,4002.5,4002.0,0.7924]
[1733610439391,0.71999663,4002.4,4002.0,0.7924]
[1733610439589,0.42077559,4002.3,4002.0,0.7924]
[1733610439793,0.18701211,4002.2,4002.0,0.7924]
[1733610440043,0.18701211,4002.1,4002.0,0.7924]
[1733610440230,0.18701211,4002.1,4001.0,2.82706859]
[1733610440231,19.62408659,4002.1,4001.1,3.0]
[1733610440429,2.61585461,4001.3,4001.1,3.28270686]
[1733610440648,2.61585461,4001.3,4001.2,1.74947]
[1733610440797,3.89362025,4001.3,4001.2,1.74947]
[1733610442528,5.98658063,4001.3,4001.2,1.74947]
[1733610442838,5.98658063,4001.3,4001.2,5.53539455]
[1733610443250,5.98658063,4001.3,4001.2,6.32779455]
[1733610443602,3.89362025,4001.3,4001.2,6.32779455]
[1733610445509,6.50947486,4001.3,4001.2,6.32779455]
[1733610446612,6.51212268,4001.3,4001.2,6.32779455]
[1733610449442,6.51212268,4001.3,4001.2,1.57832455]
[1733610449639,1.39556339,4001.3,4001.2,6.32779455]
[1733610449839,3.39e-06,4001.3,4001.2,6.32779455]
[1733610450159,2.61842305,4001.6,4001.5,0.7988]
[1733610450343,2.61842305,4001.6,4001.5,2.92449337]
[1733610451553,2.61895703,4001.6,4001.5,1.17515337]
[1733610451860,2.61895703,4001.6,4001.5,2.92449337]
[1733610453662,3.14274844,4001.9,4001.8,2.54801]
[1733610453862,5.30887597,4001.9,4001.8,2.54801]
[1733610454571,2.16612753,4001.9,4001.8,2.54801]
[1733610458658,3.90025365,4001.9,4001.8,2.54801]
[1733610459334,3.90025365,4001.9,4001.8,3.1231322]
[1733610459735,5.20082299,4001.9,4001.8,3.1231322]
[1733610460148,8.3465251,4001.9,4001.8,2.34957893]
[1733610460858,5.20082299,4001.9,4001.8,2.34957893]
[1733610461071,5.20082299,4001.9,4001.8,4.09878893]
[1733610461424,3.03469546,4001.9,4001.8,4.09878893]
[1733610461620,3.03443817,4001.9,4001.8,4.09878893]
[1733610466584,3.03401431,4001.9,4001.8,4.09878893]
[1733610468142,5.20045198,4001.9,4001.8,4.09878893]
[1733610468679,3.03401431,4001.9,4001.8,4.09878893]
[1733610469675,5.20032282,4001.9,4001.8,4.09878893]
[1733610470042,6.06685231,4001.9,4001.8,4.09878893]
[1733610471576,6.06674436,4001.9,4001.8,4.09878893]
[1733610473650,6.06674436,4001.9,4001.8,2.3243322]
[1733610473941,6.06674436,4001.9,4001.8,1.74921]
[1733610474483,9.21059523,4001.9,4001.8,1.74921]
[1733610476555,9.21137944,4001.9,4001.8,1.74921]
[1733610477862,6.06706428,4001.9,4001.8,1.74921]
[1733610478266,9.21146318,4001.9,4001.8,1.74921]
[1733610478669,6.06706428,4001.9,4001.8,1.74921]
[1733610479083,9.21152423,4001.9,4001.8,1.74921]
[1733610479285,9.21145749,4001.9,4001.8,1.74921]
[1733610480186,9.21145749,4001.9,4001.8,0.66611203]
[1733610480507,9.21145749,4001.9,4001.8,1.74921]
[1733610480658,9.21152107,4001.9,4001.8,1.74921]
[1733610480989,9.21153418,4001.9,4001.8,1.74921]
[1733610484185,9.21168771,4001.9,4001.8,1.74921]
[1733610485164,9.21184117,4001.9,4001.8,1.74921]
[1733610489373,9.21184117,4001.9,4001.6,3.0]
[1733610489575,6.06725265,4001.8,4001.6,3.0]
[1733610489872,3.90094414,4001.7,4001.6,4.7493]
[1733610490263,3.90116642,4001.7,4001.6,4.7493]
[1733610492699,6.06848082,4001.7,4001.6,4.7493]
[1733610492906,3.90116642,4001.7,4001.6,4.7493]
[1733610493095,6.06846981,4001.7,4001.6,1.7493]
[1733610493300,11.45950713,4001.7,4001.2,1.74943]
[1733610493622,3.97651285,4001.3,4001.2,1.74943]
[1733610493768,6.89906981,4001.3,4000.7,1.74968]
[1733610493975,3.14601933,4001.1,4000.7,1.74968]
[1733610494196,6.06813688,4001.0,4000.7,1.74968]
[1733610494397,0.8243,4000.8,4000.7,1.74968]
[1733610494593,4.72546642,4000.8,4000.7,1.74968]
[1733610494980,6.8925575,4000.8,4000.5,1.74977]
[1733610495183,3.90019225,4000.7,4000.3,0.1664111]
[1733610495426,2.61968508,4000.5,4000.4,1.74982]
[1733610495587,6.51987689,4000.5,4000.4,1.74982]
[1733610496115,3.90019225,4000.5,4000.4,1.74982]
[1733610496476,6.51987689,4000.5,4000.4,1.74982]
[1733610497224,3.90019225,4000.5,4000.4,1.74982]
[1733610497579,6.51987689,4000.5,4000.4,1.74982]
[1733610498291,0.8243,4000.3,3997.9,0.2]
[1733610498628,0.8243,4000.3,3997.5,0.1]
[1733610498629,1.04678365,3999.0,3998.7,1.75054]
[1733610498918,5.99375956,3998.9,3998.6,1.75056]
[1733610499088,5.99375956,3998.9,3998.3,1.07751859]
[1733610499089,3.21167264,3998.8,3998.7,1.75056]
[1733610499293,3.21167264,3998.8,3998.5,1.75063]
[1733610499294,3.73644866,3998.8,3998.5,1.75063]
[1733610499513,3.73644866,3998.8,3998.5,1.75065]
[1733610499514,3.2116541,3998.7,3998.5,1.75065]
[1733610499717,2.16606613,3998.6,3998.5,1.75064]
[1733610500094,1.0445685,3998.8,3998.6,1.77297503]
[1733610500421,2.15935655,3998.7,3998.6,1.77297503]
[1733610500720,0.86374262,3998.7,3998.6,1.75061]
[1733610501023,2.15926986,3998.7,3998.6,0.0231042]
[1733610501224,1.0445685,3998.9,3998.6,1.7737142]
[1733610501516,2.15745654,3998.8,3998.7,0.0231042]
[1733610502128,2.91786731,3999.2,3998.7,0.0231042]
[1733610502129,1.0445685,3999.0,3998.7,1.7736642]
[1733610502415,2.15592675,3998.9,3998.7,0.0231042]
[1733610502619,0.86237135,3998.8,3998.5,1.75064]
[1733610502780,1.0445685,3999.0,3998.6,1.7506]
[1733610502977,2.15578787,3998.9,3998.6,1.77378114]
[1733610503184,2.39468253,3999.2,3998.6,1.77378114]
[1733610503185,1.0445685,3999.1,3998.6,1.77378114]
[1733610503420,2.1544372,3999.0,3998.7,1.75056]
[1733610503734,1.8688685,3999.2,3998.7,1.75056]
[1733610504025,3.19880833,3999.1,3998.8,0.02318114]
[1733610504351,1.48533369,3999.2,3998.5,1.75064]
[1733610504352,2.52990219,3999.2,3998.5,1.75064]
[1733610504496,0.86119613,3999.1,3998.5,1.75064]
[1733610504697,2.52990219,3999.2,3998.6,0.02318114]
[1733610504924,0.86120183,3999.1,3998.6,0.02318114]
[1733610505084,1.48533369,3999.2,3998.6,0.02318114]
[1733610505283,0.86081221,3999.1,3998.6,0.02318114]
[1733610505483,2.52990219,3999.2,3998.6,0.02318114]
[1733610505726,1.27078804,3999.1,3998.6,0.02318114]
[1733610506022,0.86076674,3999.0,3998.0,4.07751859]
[1733610506237,0.86076674,3999.0,3996.9,0.2]
[1733610506238,1.45459697,3999.1,3998.3,0.83]
[1733610506388,2.9752945,3999.0,3998.3,1.75073]
[1733610506589,0.8243,3999.0,3998.3,1.75073]
[1733610506815,0.86036563,3998.9,3998.4,0.0232148]
[1733610507094,0.8243,3999.0,3998.4,1.75069]
[1733610507288,1.04691721,3998.9,3998.5,0.0232148]
[1733610507494,0.8243,3998.7,3998.5,0.0232148]
[1733610507822,0.8243,3998.5,3997.4,1.75109]
[1733610507995,0.8243,3998.5,3997.8,1.75095]
[1733610508202,0.8243,3998.5,3997.3,1.75118]
[1733610508416,0.7555,3998.3,3997.4,1.75112]
[1733610508619,0.8596656,3998.2,3996.7,1.75141]
[1733610508929,0.8596656,3998.2,3996.6,0.7561]
[1733610508930,0.85967702,3998.1,3997.4,1.75109]
[1733610509127,1.8000685,3998.3,3997.2,1.10253334]
[1733610509434,2.50371469,3998.2,3997.2,1.10253334]
[1733610509647,0.85919236,3998.1,3997.2,1.10253334]
[1733610509792,0.35573379,3998.2,3996.6,0.7561]
[1733610509988,3.19249072,3998.1,3997.1,1.75125]
[1733610510229,3.94799072,3998.0,3997.1,1.75125]
[1733610510411,1.44657015,3997.9,3997.1,1.75125]
[1733610510730,0.5874107,3997.9,3997.1,1.75126]
[1733610510912,0.5874107,3997.9,3996.9,1.10253499]
[1733610511095,0.7555,3998.0,3997.0,0.0250164]
[1733610511312,0.7555,3998.0,3997.2,1.75121]
[1733610511517,0.7555,3998.0,3997.0,0.0250164]
[1733610511864,0.85818874,3997.9,3997.3,1.75114]
[1733610512050,1.8000685,3998.0,3997.3,1.75114]
[1733610512198,0.85782401,3997.9,3997.3,1.75114]
[1733610512399,2.17268698,3998.0,3997.4,1.75113]
[1733610512594,2.17268698,3998.0,3997.2,1.07751859]
[1733610512595,0.85775146,3997.9,3997.2,2.82872859]
[1733610512814,1.12811848,3998.0,3997.2,2.82872859]
[1733610513199,0.85775949,3997.9,3997.4,1.75113]
[1733610513398,0.7555,3998.0,3997.4,1.07751859]
[1733610513634,1.8000685,3998.3,3997.7,1.07751859]
[1733610513837,0.7555,3998.3,3997.8,1.75094]
[1733610514009,0.7555,3998.3,3997.9,0.04676055]
[1733610514548,0.7555,3998.3,3997.9,1.79767055]
[1733610514744,0.7555,3998.3,3997.9,1.77321742]
[1733610515040,1.8560685,3998.6,3998.0,1.75085]
[1733610515199,0.8115,3998.6,3997.7,1.07751859]
[1733610515400,0.8115,3998.6,3998.0,1.07751859]
[1733610515615,0.8115,3998.6,3998.1,1.75082]
[1733610516317,1.80797487,3998.9,3998.3,1.7507]
[1733610516519,1.80797487,3998.9,3998.0,1.07751859]
[1733610516520,0.85674541,3998.8,3998.0,1.07751859]
[1733610516722,0.76340637,3998.9,3998.0,1.07751859]
[1733610516946,0.76340637,3998.9,3998.0,1.39620594]
[1733610517116,0.76340637,3998.9,3998.2,1.75075]
[1733610517316,0.85673739,3998.8,3998.2,1.75075]
[1733610517516,1.80797487,3998.9,3998.2,1.75075]
[1733610517751,1.80797487,3998.9,3998.2,1.75076]
[1733610517752,0.85674873,3998.8,3998.2,1.75076]
[1733610518056,1.80797487,3998.9,3998.0,1.07751859]
[1733610518268,0.85672793,3998.8,3998.1,1.75081]
[1733610518419,2.22696061,3998.9,3997.3,1.75115]
[1733610518755,3.18646533,3998.8,3998.0,1.75087]
[1733610519061,0.85675846,3998.7,3998.0,1.75087]
[1733610519244,2.22696061,3998.9,3998.0,1.75087]
[1733610519448,2.60275104,3998.8,3998.0,1.75087]
[1733610519616,0.85674863,3998.7,3998.0,1.75087]
[1733610519822,0.8567751,3998.6,3998.0,1.75087]
[1733610520044,1.50545281,3998.8,3998.0,1.75087]
[1733610520359,0.85676582,3998.7,3998.0,1.75083]
[1733610520651,0.43561107,3998.7,3998.0,1.75083]
[1733610520860,0.43561107,3998.7,3997.8,0.9754404]
[1733610521431,0.43561107,3998.7,3998.1,1.7508]
[1733610521954,0.85683381,3998.6,3998.1,1.7508]
[1733610522122,0.43561107,3998.7,3998.1,1.7508]
[1733610522522,0.43561107,3998.7,3998.2,1.75078]
[1733610522973,0.43561107,3998.7,3998.4,1.75068]
[1733610523123,1.8560685,3999.0,3997.9,1.75088]
[1733610523320,0.85687133,3998.9,3997.9,1.75088]
[1733610523566,1.8560685,3999.0,3998.3,1.7507]
[1733610523852,1.8560685,3999.0,3998.4,1.7507]
[1733610523853,3.18694956,3998.9,3998.4,1.7507]
[1733610524053,1.41383563,3998.8,3998.4,1.7507]
[1733610524263,0.55688321,3998.8,3998.4,1.7507]
[1733610524553,1.0445685,3998.9,3998.6,1.75061]
[1733610524758,0.8115,3999.0,3998.6,1.75061]
[1733610524759,1.8560685,3999.0,3998.6,1.75061]
[1733610525058,0.8115,3999.0,3998.6,1.75061]
[1733610525556,0.85716455,3998.9,3998.6,1.75061]
[1733610525725,0.8115,3999.0,3998.6,1.75061]
[1733610525925,0.85718804,3998.9,3998.6,1.75061]
[1733610526159,1.1541451,3999.0,3998.1,0.7842]
[1733610526336,1.04317495,3998.9,3998.6,1.75057]
[1733610526536,0.8115,3999.0,3998.6,1.75057]
[1733610526537,0.1859112,3998.8,3998.6,1.75057]
[1733610526750,1.8560685,3999.0,3998.6,1.75057]
[1733610526927,2.3290993,3998.9,3998.6,1.75057]
[1733610527126,0.1859264,3998.8,3998.7,1.75056]
[1733610527322,1.04338649,3998.8,3998.7,1.75056]
[1733610527527,0.1859264,3998.8,3998.7,1.75056]
[1733610528353,0.1859264,3998.8,3998.2,1.75078]
[1733610528548,0.1859264,3998.7,3998.2,1.75078]
[1733610528764,1.0166264,3998.6,3998.0,1.75087]
[1733610528972,0.8307,3998.6,3998.0,1.75087]
[1733610529170,0.1862795,3998.5,3998.0,1.75087]
[1733610529395,0.8307,3998.6,3998.4,1.75069]
[1733610529537,0.18631922,3998.5,3998.4,1.75069]
[1733610530867,0.18633932,3998.5,3998.1,1.07751859]
[1733610531041,0.8307,3998.9,3998.5,1.75063]
[1733610531242,2.63079775,3998.8,3998.5,1.75063]
[1733610531438,0.4844964,3998.7,3998.5,1.75063]
[1733610531761,0.18634477,3998.6,3998.5,1.75063]
[1733610534161,1.04598888,3998.6,3998.5,1.75063]
[1733610535175,2.33616712,3998.6,3998.5,1.75063]
[1733610536005,0.18634477,3998.6,3998.5,1.75063]
[1733610536209,1.04701437,3998.6,3998.3,1.75074]
[1733610536394,2.40108253,3998.9,3998.2,1.75076]
[1733610536395,1.0445685,3998.8,3998.2,1.75076]
[1733610536711,2.33789489,3998.7,3998.6,1.75058]
[1733610536910,3.38246339,3998.7,3998.6,1.75058]
[1733610537134,2.33789489,3998.7,3998.6,1.75058]
[1733610537407,3.90827742,3998.7,3998.6,1.75058]
[1733610538185,4.06183548,3998.7,3998.6,1.75058]
[1733610538387,4.06180997,3998.7,3998.6,1.75058]
[1733610538587,3.90153434,3998.7,3998.6,1.75058]
[1733610538810,4.06181212,3998.7,3998.6,1.75058]
[1733610539017,3.90154281,3998.7,3998.6,1.75058]
[1733610539198,6.156995,3998.7,3998.6,1.75058]
[1733610539401,4.06342769,3998.7,3998.6,1.75058]
[1733610539600,3.88254041,3998.7,3998.6,1.75058]
[1733610539830,4.06895985,3998.7,3998.6,1.75058]
[1733610540189,6.67758584,3998.7,3998.6,1.75058]
[1733610540411,6.15707744,3998.7,3998.6,1.75058]
[1733610540823,4.06895985,3998.7,3998.2,1.64859108]
[1733610540994,1.04407443,3998.3,3998.2,1.64859108]
[1733610541193,3.72440926,3998.3,3998.2,1.64859108]
[1733610542325,3.88716271,3998.3,3998.2,1.64859108]
[1733610542647,3.72638463,3998.3,3998.2,1.64859108]
[1733610542996,3.72921004,3998.3,3998.2,1.64859108]
[1733610543217,3.89136578,3998.3,3998.2,1.64859108]
[1733610543525,3.73047636,3998.3,3998.2,1.64859108]
[1733610543728,3.89140651,3998.3,3998.2,1.64859108]
[1733610544727,5.98594113,3998.3,3998.2,1.64859108]
[1733610545929,3.89140651,3998.3,3998.2,1.64859108]
[1733610546128,3.89140651,3998.3,3998.2,4.00210964]
[1733610546129,0.91059302,3998.3,3998.2,4.00210964]
[1733610546339,1.95798648,3998.3,3998.2,4.00210964]
[1733610546625,1.04739346,3998.6,3998.4,0.8283]
[1733610546850,1.04739346,3998.6,3998.5,2.82816859]
[1733610546997,1.91336819,3998.6,3998.5,3.51119641]
[1733610547916,1.91338562,3998.6,3998.5,3.51119641]
[1733610548119,0.86599216,3998.6,3998.5,3.51119641]
[1733610548317,1.04739346,3998.8,3998.7,1.75056]
[1733610548521,0.86595896,3998.8,3998.7,1.75056]
[1733610548725,1.91335242,3998.8,3998.7,1.75056]
[1733610550032,0.86595896,3998.8,3998.7,1.75056]
[1733610550635,1.04739346,3998.9,3998.5,3.51119641]
[1733610550636,1.04739346,3999.0,3998.5,1.76054641]
[1733610550801,1.04739346,3999.0,3998.9,2.82799859]
[1733610551002,0.86574989,3999.0,3998.9,2.82799859]
[1733610551198,1.91277378,3999.0,3998.9,2.82799859]
[1733610552149,0.86574989,3999.0,3998.9,2.82799859]
[1733610552945,0.86557558,3999.0,3998.9,2.82799859]
[1733610554607,1.04702389,3999.2,3998.9,1.07751859]
[1733610554808,0.8653811,3999.1,3999.0,1.75039]
[1733610556050,2.1634587,3999.1,3999.0,1.75039]
[1733610556244,3.21048259,3999.1,3999.0,1.75039]
[1733610556444,2.1634587,3999.1,3999.0,1.75039]
[1733610557824,2.1634587,3999.1,3998.9,1.07751859]
[1733610558123,3.21037156,3999.0,3998.9,1.07751859]
[1733610559250,2.1634587,3999.0,3998.9,1.07751859]
[1733610560420,3.73458106,3999.0,3998.9,1.07751859]
[1733610560728,2.1634587,3999.0,3998.9,1.07751859]
[1733610561342,3.73458106,3999.0,3998.9,1.07751859]
[1733610561555,2.9246587,3999.0,3998.9,1.07751859]
[1733610562060,4.49578106,3999.0,3998.9,1.07751859]
[1733610562839,3.63039996,3999.0,3998.9,1.07751859]
[1733610563156,4.49781956,3999.0,3998.9,1.07751859]
[1733610563456,2.9266972,3999.0,3998.9,1.07751859]
[1733610563653,4.49781956,3999.0,3998.9,1.07751859]
[1733610563839,2.9266972,3999.0,3998.9,1.07751859]
[1733610564162,4.49781956,3999.0,3998.9,1.07751859]
[1733610564920,2.9266972,3999.0,3998.9,1.07751859]
[1733610565148,4.49781956,3999.0,3998.9,1.07751859]
[1733610565528,4.49468492,3999.0,3998.9,1.07751859]
[1733610565749,3.73661956,3999.0,3998.9,2.82799859]
[1733610566063,3.21305515,3999.0,3998.9,2.82799859]
[1733610566420,2.1654972,3999.0,3998.9,2.82799859]
[1733610566654,3.21306643,3999.0,3998.9,2.82799859]
[1733610567166,2.1654972,3999.0,3998.9,2.82799859]
[1733610567350,3.21309838,3999.0,3998.9,2.82799859]
[1733610567823,2.16561438,3999.0,3998.9,1.07751859]
[1733610568023,3.21318688,3999.0,3998.9,2.82799859]
[1733610568231,2.16561438,3999.0,3998.9,1.75048]
[1733610568435,2.74877683,3999.0,3998.8,1.07751859]
[1733610568748,2.95241438,3998.9,3998.8,1.07751859]
[1733610569134,4.00011803,3998.9,3998.8,1.07751859]
[1733610569330,2.95241438,3998.9,3998.8,1.07751859]
[1733610570361,4.52353674,3998.9,3998.8,1.07751859]
[1733610571273,4.68523932,3998.9,3998.8,1.07751859]
[1733610571574,4.52413732,3998.9,3998.8,1.07751859]
[1733610571737,5.66740494,3998.9,3998.6,1.7506]
[1733610571939,3.73738448,3998.8,3998.7,1.07751859]
[1733610572844,3.7379498,3998.8,3998.7,1.07751859]
[1733610573549,3.89920695,3998.8,3998.7,1.07751859]
[1733610573749,3.89923747,3998.8,3998.7,1.07751859]
[1733610574147,3.73812712,3998.8,3998.7,1.07751859]
[1733610576334,5.47143213,3998.8,3998.7,1.07751859]
[1733610576572,3.89942085,3998.8,3998.7,1.07751859]
[1733610576778,3.73827903,3998.8,3998.7,1.07751859]
[1733610577844,3.89999826,3998.8,3998.7,1.07751859]
[1733610578042,3.73885805,3998.8,3998.7,1.07751859]
[1733610578243,2.1666657,3998.8,3998.7,1.07751859]
[1733610578447,2.1666657,3998.8,3998.1,0.7909]
[1733610578448,0.7868,3998.7,3998.1,0.7909]
[1733610578779,2.1666657,3998.6,3998.5,1.07751859]
[1733610578985,3.73887066,3998.6,3998.5,1.07751859]
[1733610582149,3.73927157,3998.6,3998.5,1.07751859]
[1733610582348,3.90046178,3998.6,3998.5,1.07751859]
[1733610582864,3.90103619,3998.6,3998.5,1.07751859]
[1733610583063,3.73984443,3998.6,3998.5,1.07751859]
[1733610583272,5.47365495,3998.6,3998.5,1.07751859]
[1733610583596,3.90105147,3998.6,3998.5,1.07751859]
[1733610583896,5.99593925,3998.6,3998.5,0.03533757]
[1733610584457,3.90105147,3998.6,3998.5,0.03533757]
[1733610585284,5.99593925,3998.6,3998.5,0.03533757]
[1733610585857,3.90105147,3998.6,3998.5,0.03533757]
[1733610586193,5.99593925,3998.6,3998.5,0.03533757]
[1733610586580,3.90105147,3998.6,3998.5,0.03533757]
[1733610587786,3.90110455,3998.6,3998.5,0.03533757]
[1733610587992,5.99599233,3998.6,3998.5,0.03533757]
[1733610588864,3.90110455,3998.6,3998.5,0.03533757]
[1733610589862,5.99599233,3998.6,3998.5,0.03533757]
[1733610591179,3.90110455,3998.6,3998.5,0.03533757]
[1733610592610,1.73381052,3998.6,3998.5,0.03533757]
[1733610592811,3.9013935,3998.6,3998.5,0.03533757]
[1733610593487,3.74036785,3998.6,3998.5,0.03533757]
[1733610593710,3.90156878,3998.6,3998.5,0.03533757]
[1733610595489,3.9015742,3998.6,3998.5,0.03533757]
[1733610597288,6.93692973,3998.6,3998.5,0.03533757]
[1733610597510,6.06989052,3998.6,3998.1,1.75082]
[1733610597808,1.04856354,3998.3,3998.1,1.75082]
[1733610598019,2.16757295,3998.2,3998.1,1.75082]
[1733610598390,3.21613649,3998.2,3998.1,1.75082]
[1733610598978,2.16757295,3998.2,3998.1,1.75082]
[1733610600113,2.16757295,3998.2,3998.1,2.82833859]
[1733610600300,3.21613649,3998.2,3998.1,2.82833859]
[1733610600512,3.21613649,3998.2,3998.1,1.07751859]
[1733610600814,3.21613649,3998.2,3998.1,1.84501859]
[1733610601182,3.21625889,3998.2,3998.1,1.07751859]
[1733610602402,2.16769535,3998.2,3998.1,1.07751859]
[1733610602602,3.21637494,3998.2,3998.1,1.07751859]
[1733610602813,2.16769535,3998.2,3998.1,1.07751859]
[1733610603087,3.21637494,3998.2,3998.1,1.07751859]
[1733610603598,3.21637215,3998.2,3998.1,1.07751859]
[1733610603890,2.16769535,3998.2,3998.1,1.07751859]
[1733610604306,3.21635137,3998.2,3998.1,1.07751859]
[1733610605790,1.91573416,3998.2,3998.1,1.07751859]
[1733610605995,3.21651358,3998.2,3998.1,1.07751859]
[1733610606794,3.21651358,3998.2,3998.1,2.82834859]
[1733610606993,2.16785756,3998.2,3998.1,1.07751859]
[1733610607197,3.74070287,3998.2,3998.1,1.07751859]
[1733610607421,3.90217124,3998.2,3998.1,1.07751859]
[1733610607627,4.68066319,3998.2,3997.7,2.51849]
[1733610607799,1.04871962,3998.0,3997.9,1.07751859]
[1733610607994,3.21657718,3998.0,3997.9,1.07751859]
[1733610609228,3.21654271,3998.0,3997.9,1.07751859]
[1733610609742,2.16785756,3998.0,3997.9,1.07751859]
[1733610611329,2.75144059,3998.0,3997.9,1.07751859]
[1733610612204,4.32452556,3998.0,3997.9,1.07751859]
[1733610612901,2.75144059,3998.0,3997.9,1.07751859]
[1733610613205,3.74094253,3998.0,3997.9,1.07751859]
[1733610614318,2.16785756,3998.0,3997.9,1.07751859]
[1733610614513,3.74094253,3998.0,3997.9,1.07751859]
[1733610615662,2.16787267,3998.0,3997.9,1.07751859]
[1733610616339,3.74095764,3998.0,3997.9,1.07751859]
[1733610617088,2.16787267,3998.0,3997.9,1.07751859]
[1733610617928,3.74095764,3998.0,3997.9,1.07751859]
[1733610620222,2.16787267,3998.0,3997.9,1.07751859]
[1733610620538,3.74095764,3998.0,3997.9,1.07751859]
[1733610620958,2.16787267,3998.0,3997.9,1.07751859]
[1733610621656,3.74095764,3998.0,3997.9,1.07751859]
[1733610622965,3.74095764,3998.0,3997.9,1.02751859]
[1733610623172,2.16787267,3998.0,3997.9,1.02751859]
[1733610625269,2.16787267,3998.0,3997.7,1.751]
[1733610625477,1.57308497,3998.1,3997.9,1.07751859]
[1733610625775,2.16796913,3998.0,3997.9,1.07751859]
[1733610630522,2.16810005,3998.0,3997.9,1.07751859]